Workbook

Sheet Notes
A1: How to protect a student from dropping out game.
B3: Yellow cells on the Game tab may be used to change inputs.
B4: The Roll Dice button is used to solicit an outcome. Outcomes depend on probability. Probabilities are shown in violet cells at the top.
B5: A roll of the dice may result in graduation, or it may result in dropping out.
B6: The more protection a student has from dropping out, the less likely will that outcome be.
B7: All students have a certain likelihood of dropping out each semester. (See the parameter tab for the probability.)
B8: The longer in school, the more likely a drop out.
B9: The more developmental coursework is needed, the longer in school.
B10: The more a student studies, the better the grade and the faster accumulation of credits, speeding time to graduation.
B11: The more credits taken, the fewer hours it may be possible to study for each course.
B12: A week has only so many hours.
B13: The maximum credit load is determined by the number of hours left in the week to attend class.
B16: This workbook contains a few Visual Basic commands. If you get an error, save your parameters and restart. It's cranky.
B19: The parameters are partially based on actual LaGuardia data from 2012, and partially on simulation data that matched actual outcomes.
B20: 12 semesters of probabilities can be found beginning in cell F100 on the Game tab. It's hidden only because of the complexity.
B22: Acknowlegement: Sam Michalowski did the interviews and reporting on students who changed registration intensity that set up the theory for this work.

Sheet Game
A1: College Success Game
B2: Results:
A3: Probability of dropping out before graduation | B3: =Game!N107 -> 0.1975459525
A4: Expected lifetime earnings | B4: =Game!M108 -> 2106568.683
A5: Probable graduation semester | B5: =MATCH(gradcred,Game!H103:S103,0) -> 4
A6: Percentage of courses passed | B6: =(minpass+(MIN(Game!I119,maxstudy)/maxstudy)*(maxpass-minpass)) -> 0.9 | D6: FOR ANY GIVEN STUDENT, THIS MEANS…
A8: Input | B8: Input | D8: Roll the dice to see what the probabilities actually mean!
A9: What was your HS GPA? | B9: 4
A10: Into which developmental course levels did you place?
D11: =Game!S303&" in semester "&TEXT(IFERROR(MATCH("Continue",Game!H303:S303,1),0)+1,0) -> Graduation in semester 4 | H11: FALSE
D12: (Actual results may vary.) | H12: FALSE
H13: FALSE
H14: FALSE
D15: Notes: | H15: FALSE
A16: How many hours do you sleep each night? | B16: 6 | D16: ="Fewer than "&minsleep&" lowers drop-out protection" -> Fewer than 6 lowers drop-out protection | H16: FALSE | K16: 6
A17: How long do you need each day to eat, dress, get ready? | B17: 4 | H17: FALSE | K17: 4
A18: How many hours do you spend commuting each weekday? | B18: 2 | H18: FALSE | K18: 2
A19: How much time do you spend with your family each day? | B19: 0 | K19: 0
A20: How many hours will you work each week? | B20: 0 | K20: 0
A21: How many nights each week will you go out? | B21: 0 | D21: ="Each night uses up "&party&" hours" -> Each night uses up 6 hours | K21: 0
A22: How many hours per week will you engage in support activities? | B22: 10 | D22: ="Maximum of "&maxsup&" (seeing advisors, math lab, etc.)" -> Maximum of 10 (seeing advisors, math lab, etc.) | K22: 10
A23: How many hours per week will you study? | B23: 54 | D23: ="Probability of passing with 0 hours "& minpass*100&"%" -> Probability of passing with 0 hours 63% | K23: 54
D24: ="Probability of passing with "&B25*3&" hours: "&maxpass*100&"%" -> Probability of passing with 54 hours: 90%
A25: Planned credit load | B25: 18 | C25: =ROUNDDOWN((Corcred*(Game!$G$113-Game!H116*7-Game!H117*7-Game!H120-Game!H121-Game!$H$126-B23))/(Corhrs),0) -> 18 | D25: = current maximum credit load | K25: 18
A26: Available hours per week: | B26: =H114 -> 0
F100: A Model of the Path to Graduation--Life Happens, Some Students Have Better Protection Against It
G101: Initial | H101: ="Term "& TEXT(H154,Paramters!$C$1) -> Term 1 | I101: ="Term "& TEXT(I154,Paramters!$C$1) -> Term 2 | J101: ="Term "& TEXT(J154,Paramters!$C$1) -> Term 3 | K101: ="Term "& TEXT(K154,Paramters!$C$1) -> Term 4 | L101: ="Term "& TEXT(L154,Paramters!$C$1) -> Term 5 | M101: ="Term "& TEXT(M154,Paramters!$C$1) -> Term 6 | N101: ="Term "& TEXT(N154,Paramters!$C$1) -> Term 7 | O101: ="Term "& TEXT(O154,Paramters!$C$1) -> Term 8 | P101: ="Term "& TEXT(P154,Paramters!$C$1) -> Term 9 | Q101: ="Term "& TEXT(Q154,Paramters!$C$1) -> Term 10 | R101: ="Term "& TEXT(R154,Paramters!$C$1) -> Term 11 | S101: ="Term "& TEXT(S154,Paramters!$C$1) -> Term 12
F102: Graduation semester, if any | H102: =IF(H103>=gradcred,"Graduation","") ->  | K102: Graduation | L102: Graduation | M102: Graduation | N102: Graduation | O102: Graduation | P102: Graduation | Q102: Graduation | R102: Graduation | S102: Graduation
F103: Credits toward graduation, term end | G103: =-G111*3 -> 0 | H103: =ROUNDDOWN(IF(G103+(H118*Corcred)*(minpass+(MIN(H119,maxstudy)/maxstudy)*(maxpass-minpass))-IF(AND(H122=1,G103>0),majloss*G103,0)>=gradcred,gradcred,G103+(H118*Corcred)*(minpass+(MIN(H119,maxstudy)/maxstudy)*(maxpass-minpass))-IF(AND(H122=1,G103>0),majloss*G103,0)),0) -> 16 | I103: 32 | J103: 48 | K103: 60 | L103: 60 | M103: 60 | N103: 60 | O103: 60 | P103: 60 | Q103: 60 | R103: 60 | S103: 60
F104: Protection | H104: =(1-((minprot+(maxprot-H134))/maxprot))^profac -> 0.4177064336 | I104: 0.7198067695 | J104: 0.8435984353 | K104: 0.9288831036 | L104: 0.9783178816 | M104: 0.9783178816 | N104: 0.9783178816 | O104: 0.9783178816 | P104: 0.9783178816 | Q104: 0.9783178816 | R104: 0.9783178816 | S104: 0.9783178816 | U104: =Game!H11 -> FALSE
F105: =F137 -> Cumulative probability of dropping out | H105: =H137 -> 0.1164587133 | I105: 0.1637296249 | J105: 0.187581762 | K105: 0.1975459525 | L105: 0.1975459525 | M105: 0.1975459525 | N105: 0.1975459525 | O105: 0.1975459525 | P105: 0.1975459525 | Q105: 0.1975459525 | R105: 0.1975459525 | S105: 0.1975459525 | U105: =Game!H12 -> FALSE
U106: =Game!H13 -> FALSE
H107: Cumulative probability of dropping out: | N107: =S137 -> 0.1975459525 | U107: =Game!H14 -> FALSE
I108: Expected lifetime earnings: | M108: =X161 -> 2106568.683 | U108: =Game!H15 -> FALSE
U109: =Game!H16 -> FALSE
U110: =Game!H17 -> FALSE
F111: ="Developmental Courses Needed (0-"&maxdev&")" -> Developmental Courses Needed (0-7) | G111: =U114 -> 0 | U111: =Game!H18 -> FALSE
F112: High School Performance (0.00 - 4.00) | G112: =Game!B9 -> 4
F113: Time Distribution--Total Hours per week | G113: =7*24 -> 168
F114: Fun, hours per week (computed) | H114: =IF(($G$113-H116*7-H117*7-H118*(Corhrs+Corcred*(H119))-H120-H121-$H$126)<0,"Error",($G$113-H116*7-H117*7-H118*(Corhrs+Corcred*(H119))-H120-H121)-$H$126) -> 0 | I114: 0 | J114: 0 | K114: 0 | L114: 0 | M114: 0 | N114: 0 | O114: 0 | P114: 0 | Q114: 0 | R114: 0 | S114: 0 | U114: =IF(U111,3,IF(U110,2,IF(OR(U109,U104),1,0)))+IF(U105,2,IF(U106,1,0))+IF(U107,2,IF(U108,1,0)) -> 0 | V114: 2
F115: Input variables:
F116: Sleep, eat, commute: hours per day | H116: =H123+H124+H125 -> 11.42857143 | I116: =H116 -> 11.42857143 | J116: 11.42857143 | K116: 11.42857143 | L116: 11.42857143 | M116: 11.42857143 | N116: 11.42857143 | O116: 11.42857143 | P116: 11.42857143 | Q116: 11.42857143 | R116: 11.42857143 | S116: 11.42857143
F117: Family: hours per day | H117: =Game!B19 -> 0 | I117: =H117 -> 0 | J117: 0 | K117: 0 | L117: 0 | M117: 0 | N117: 0 | O117: 0 | P117: 0 | Q117: 0 | R117: 0 | S117: 0 | Z117: =IF(AA118<Y118,"Error Make Last Sem Higher","") -> 
F118: =" Courses ("&Corcred&" credits/course)" -> Courses (3 credits/course) | H118: =Game!B25/Corcred -> 6 | I118: =H118 -> 6 | J118: 6 | K118: 6 | L118: 6 | M118: 6 | N118: 6 | O118: 6 | P118: 6 | Q118: 6 | R118: 6 | S118: 6 | Y118: 1 | AA118: 8
F119: =" Hours of study/course credit (max. "&maxstudy&")" -> Hours of study/course credit (max. 3) | H119: =H127 -> 3 | I119: =H119 -> 3 | J119: 3 | K119: 3 | L119: 3 | M119: 3 | N119: 3 | O119: 3 | P119: 3 | Q119: 3 | R119: 3 | S119: 3
F120: =" Support activities: hours per week (max. "&maxsup&")" -> Support activities: hours per week (max. 10) | H120: =Game!B22 -> 10 | I120: =H120 -> 10 | J120: 10 | K120: 10 | L120: 10 | M120: 10 | N120: 10 | O120: 10 | P120: 10 | Q120: 10 | R120: 10 | S120: 10 | W120: Courses (3 credits/course)
F121: Work: hours per week | H121: =Game!B20 -> 0 | I121: =H121 -> 0 | J121: 0 | K121: 0 | L121: 0 | M121: 0 | N121: 0 | O121: 0 | P121: 0 | Q121: 0 | R121: 0 | S121: 0
F122: Change major (1=yes) | H122: 0 | I122: 0 | J122: 0 | K122: 0 | L122: 1 | M122: 0 | N122: 0 | O122: 0 | P122: 0 | Q122: 0 | R122: 0 | S122: 0 | X122: =MATCH(W120,F116:F122,0) -> 3
F123: Sleep | H123: =Game!B16 -> 6 | N123: =X135 -> 
F124: Eat, dress, get ready | H124: =Game!B17 -> 4
F125: Commute | H125: =Game!B18*5/7 -> 1.428571429
F126: Hours partying | H126: =party*Game!B21 -> 0
F127: Study hours converted | H127: =Game!B23/(Game!B25) -> 3
W128: 5
W129: Value | Y129: Error List
W130: =VALUE(W128) -> 5 | Y130: =IF(W130<0,-1,IF(AND(OR(X122=1,X122=2),W130>=24),-1,IF(AND(X122=4,W130>3),-1,IF(AND(X122=5,W130>10),-1,IF(AND(X122=6,W130>50),-1,IF(AND(X122=7,W130>1),-1,0)))))) -> 0
W132: =AND(X122=4,W130>3) -> FALSE
F134: Protection Level | H134: =((maxdev-G111)*devfac+G112*hsgrdfac)+1 -> 67 | I134: =0*H114+H134+IF(H103>=gradcred,0,-IF($H$123<minsleep,minsleep-$H$123,0)*sleepfac+MIN(H120,maxsup)*Supfac)+MIN(H119,maxstudy)*(H103-G103)*Grdfac+(H103-G103)*credfac -> 583 | J134: 1099 | K134: 1615 | L134: 1987 | M134: 1987 | N134: 1987 | O134: 1987 | P134: 1987 | Q134: 1987 | R134: 1987 | S134: 1987
X135: =IF(W130<0,"No negatives, please",IF(AND(OR(X122=1,X122=2),W130>=24),"Only 24 hrs in a day",IF(AND(X122=4,W130>3),"Maximum of 3",IF(AND(X122=5,W130>10),"Maximum of 10",IF(AND(X122=6,W130>50),"Maximum of 50",IF(AND(X122=7,W130>1),"0 or 1 please","")))))) -> 
F136: Probability of dropping out | H136: =(1-H104)*badfac -> 0.1164587133 | I136: 0.0560386461 | J136: 0.03128031293 | K136: 0.01422337928 | L136: 0.004336423688 | M136: 0.004336423688 | N136: 0.004336423688 | O136: 0.004336423688 | P136: 0.004336423688 | Q136: 0.004336423688 | R136: 0.004336423688 | S136: 0.004336423688
F137: Cumulative probability of dropping out | H137: =H136 -> 0.1164587133 | I137: =H137+(I136*(1-(H$139+H$137+H$148))) -> 0.1637296249 | J137: 0.187581762 | K137: 0.1975459525 | L137: 0.1975459525 | M137: 0.1975459525 | N137: 0.1975459525 | O137: 0.1975459525 | P137: 0.1975459525 | Q137: 0.1975459525 | R137: 0.1975459525 | S137: 0.1975459525 | V137: The probability of a life event times the probability of impact, considering protection.
F138: Probability of transfer | H138: 0.04 | I138: 0.04 | J138: 0.05 | K138: 0.08 | L138: 0.07 | M138: 0.06 | N138: 0.06 | O138: 0.06 | P138: 0.0553633218 | Q138: 0.06 | R138: 0.06 | S138: 0.06201550388 | V138: The previous semesters probability of leaving plus 1 minus that probability (the probability of not having left) times this semesters probability of leaving, up to earning graduation level credits.
F139: Cumulative probability of transfer | H139: =H138 -> 0.04 | I139: =H139+(I138*(1-(H$139+H$137+H$148))) -> 0.07374165147 | J139: 0.1118680876 | K139: 0.1679120997 | L139: 0.1679120997 | M139: 0.1679120997 | N139: 0.1679120997 | O139: 0.1679120997 | P139: 0.1679120997 | Q139: 0.1679120997 | R139: 0.1679120997 | S139: 0.1679120997
F140: Cumulative probability of leaving | H140: =H137+H139+H148 -> 0.1564587133 | I140: 0.2374712764 | J140: 0.2994498497 | K140: 1 | L140: 1 | M140: 1 | N140: 1 | O140: 1 | P140: 1 | Q140: 1 | R140: 1 | S140: 1
F141: Probability of transfer | G141: Actual | H141: 0.04324565314 | I141: 0.05173362686 | J141: 0.04563758389 | K141: 0.1135091926 | L141: 0.07995846314 | M141: 0.0652173913 | N141: 0.07480314961 | O141: 0.0652173913 | P141: 0.0553633218 | Q141: 0.06696428571 | R141: 0.07514450867 | S141: 0.06201550388
F142: Cum Probability of transfer | G142: Actual | H142: =H141 -> 0.04324565314 | I142: =H142+(I141*(1-(H$146+H$144+H$142))) -> 0.08515381186 | J142: 0.1154703522 | K142: 0.1787784218 | L142: 0.2131074454 | M142: 0.2331698618 | N142: 0.2501114579 | O142: 0.2608114133 | P142: 0.2679447169 | Q142: 0.274632189 | R142: 0.2804279982 | S142: 0.28399465
F143: Probability of dropping out | G143: Actual | H143: 0.1435577352 | I143: 0.1249312053 | J143: 0.07516778523 | K143: 0.04636290967 | L143: 0.06957424714 | M143: 0.0768115942 | N143: 0.06299212598 | O143: 0.07608695652 | P143: 0.0830449827 | Q143: 0.0625 | R143: 0.1040462428 | S143: 0.09302325581
F144: Cum Probability of dropping out | G144: Actual | H144: =H143 -> 0.1435577352 | I144: =H144+(I143*(1-(H$146+H$144+H$142))) -> 0.2447614802 | J144: 0.2946946054 | K144: 0.320552831 | L144: 0.3504235399 | M144: 0.3740526081 | N144: 0.3883192153 | O144: 0.4008024967 | P144: 0.4115024521 | Q144: 0.4177440927 | R144: 0.4257690593 | S144: 0.431119037
F145: Probability of graduating | G145: Actual | H145: 0.00312082033 | I145: 0.003302146395 | J145: 0.03959731544 | K145: 0.07034372502 | L145: 0.1339563863 | M145: 0.1217391304 | N145: 0.1377952756 | O145: 0.07336956522 | P145: 0.08650519031 | Q145: 0.09821428571 | R145: 0.07514450867 | S145: 0.06976744186
F146: Cum Probability of graduating | G146: Actual | H146: =H145 -> 0.00312082033 | I146: =H146+(I145*(1-(H$146+H$144+H$142))) -> 0.005795809184 | J146: 0.03209986625 | K146: 0.07133303611 | L146: 0.1288452965 | M146: 0.1662951404 | N146: 0.1975033437 | O146: 0.2095407936 | P146: 0.2206865805 | Q146: 0.2304948729 | R146: 0.2362906821 | S146: 0.2403031654
F147: Probability of graduating | G147: Calculated | H147: 0 | I147: =IF(I103>=gradcred,IF(SUM($H147:H147)>0,0,1-I136-I138),0) -> 0 | J147: =IF(J103>=gradcred,IF(SUM($H147:I147)>0,0,1-J136-J138),0) -> 0 | K147: =IF(K103>=gradcred,IF(SUM($H147:J147)>0,0,1-K136-K138),0) -> 0.9057766207 | L147: =IF(L103>=gradcred,IF(SUM($H147:K147)>0,0,1-L136-L138),0) -> 0 | M147: =IF(M103>=gradcred,IF(SUM($H147:L147)>0,0,1-M136-M138),0) -> 0 | N147: =IF(N103>=gradcred,IF(SUM($H147:M147)>0,0,1-N136-N138),0) -> 0 | O147: =IF(O103>=gradcred,IF(SUM($H147:N147)>0,0,1-O136-O138),0) -> 0 | P147: =IF(P103>=gradcred,IF(SUM($H147:O147)>0,0,1-P136-P138),0) -> 0 | Q147: =IF(Q103>=gradcred,IF(SUM($H147:P147)>0,0,1-Q136-Q138),0) -> 0 | R147: =IF(R103>=gradcred,IF(SUM($H147:Q147)>0,0,1-R136-R138),0) -> 0 | S147: =IF(S103>=gradcred,IF(SUM($H147:R147)>0,0,1-S136-S138),0) -> 0
F148: Cumulative probability of graduating | G148: Calculated | H148: =H147 -> 0 | I148: =H148+(I147*(1-(H$139+H$137+H$148))) -> 0 | J148: 0 | K148: 0.6345419478 | L148: 0.6345419478 | M148: 0.6345419478 | N148: 0.6345419478 | O148: 0.6345419478 | P148: 0.6345419478 | Q148: 0.6345419478 | R148: 0.6345419478 | S148: 0.6345419478
F149: Sum of cumulative leaving probabilities | H149: =H139+H137+H148 -> 0.1564587133 | I149: 0.2374712764 | J149: 0.2994498497 | K149: 1 | L149: 1 | M149: 1 | N149: 1 | O149: 1 | P149: 1 | Q149: 1 | R149: 1 | S149: 1
F150: Probability of continuing after this year | H150: =1-H140 -> 0.8435412867 | I150: 0.7625287236 | J150: 0.7005501503 | K150: 0 | L150: 0 | M150: 0 | N150: 0 | O150: 0 | P150: 0 | Q150: 0 | R150: 0 | S150: 0
F151: Probability of DO after this year | H151: =H136 -> 0.1164587133 | I151: =I136*H150 -> 0.04727091164 | J151: 0.02385213709 | K151: 0.009964190492 | L151: 0 | M151: 0 | N151: 0 | O151: 0 | P151: 0 | Q151: 0 | R151: 0 | S151: 0 | V151: =SUM(H151:S151) -> 0.1975459525
F152: Probability of Transfer after this year | H152: =H138 -> 0.04 | I152: =I138*H150 -> 0.03374165147 | J152: 0.03812643618 | K152: 0.05604401203 | L152: 0 | M152: 0 | N152: 0 | O152: 0 | P152: 0 | Q152: 0 | R152: 0 | S152: 0 | V152: =SUM(H152:S152) -> 0.1679120997
F153: Probability of Grad after this year | H153: =H147 -> 0 | I153: =I147*H150 -> 0 | J153: 0 | K153: 0.6345419478 | L153: 0 | M153: 0 | N153: 0 | O153: 0 | P153: 0 | Q153: 0 | R153: 0 | S153: 0 | V153: =SUM(H153:S153) -> 0.6345419478
F154: Semester | H154: 1 | I154: =H154+1 -> 2 | J154: 3 | K154: 4 | L154: 5 | M154: 6 | N154: 7 | O154: 8 | P154: 9 | Q154: 10 | R154: 11 | S154: 12
F155: Transfer years of BA earnings | H155: =career-(H154*0.5)-tranyrba -> 38.5 | I155: 38 | J155: 37.5 | K155: 37 | L155: 36.5 | M155: 36 | N155: 35.5 | O155: 35 | P155: 34.5 | Q155: 34 | R155: 33.5 | S155: 33 | V155: =SUM(V151:V153) -> 1
F156: Grad years of BA earnings | H156: =career-(H154*0.5)-gradyrba -> 39.5 | I156: 39 | J156: 38.5 | K156: 38 | L156: 37.5 | M156: 37 | N156: 36.5 | O156: 36 | P156: 35.5 | Q156: 35 | R156: 34.5 | S156: 34
F157: Exp. annual continuation earnings | H157: =0.5*H121/40*somecol -> 0 | I157: =0.5*I121*(1-H140)*somecol/40 -> 0 | J157: 0 | K157: 0 | L157: 0 | M157: 0 | N157: 0 | O157: 0 | P157: 0 | Q157: 0 | R157: 0 | S157: 0 | V157: =0.5*V121*(1-S140)*somecol/40 -> 0 | X157: =SUM(H157:W157) -> 0
F158: Exp. annual drop out earnings plus lump | H158: 0 | I158: =H151*somecol -> 5376.665875 | J158: 2182.403449 | K158: 1101.205465 | L158: 460.0267466 | M158: 0 | N158: 0 | O158: 0 | P158: 0 | Q158: 0 | R158: 0 | S158: 0 | V158: =S151*somecol -> 0 | W158: =(career-6)*V151*somecol -> 337451.1568 | X158: =SUM(H158:W158) -> 346571.4583
F159: Exp. transfer grad earnings | H159: 0 | I159: =H152*((tranyrba*somecol*0.5+earlybagrad*ba*(career-0.5*Game!H154-tranyrba)+(1-earlybagrad)*somecol*(career-0.5*H154-tranyrba))) -> 92996.61581 | J159: =I152*((tranyrba*somecol*0.5+earlybagrad*ba*(career-0.5*Game!I154-tranyrba)+(1-earlybagrad)*somecol*(career-0.5*I154-tranyrba))) -> 77468.16138 | K159: =J152*((tranyrba*somecol*0.5+earlybagrad*ba*(career-0.5*Game!J154-tranyrba)+(1-earlybagrad)*somecol*(career-0.5*J154-tranyrba))) -> 86429.82167 | L159: =K152*((tranyrba*somecol*0.5+earlybagrad*ba*(career-0.5*Game!K154-tranyrba)+(1-earlybagrad)*somecol*(career-0.5*K154-tranyrba))) -> 125422.6757 | M159: =L152*((tranyrba*somecol*0.5+earlybagrad*ba*(career-0.5*Game!L154-tranyrba)+(1-earlybagrad)*somecol*(career-0.5*L154-tranyrba))) -> 0 | N159: =M152*((tranyrba*somecol*0.5+earlybagrad*ba*(career-0.5*Game!M154-tranyrba)+(1-earlybagrad)*somecol*(career-0.5*M154-tranyrba))) -> 0 | O159: =N152*((tranyrba*somecol*0.5+earlybagrad*ba*(career-0.5*Game!N154-tranyrba)+(1-earlybagrad)*somecol*(career-0.5*N154-tranyrba))) -> 0 | P159: =O152*((tranyrba*somecol*0.5+earlybagrad*ba*(career-0.5*Game!O154-tranyrba)+(1-earlybagrad)*somecol*(career-0.5*O154-tranyrba))) -> 0 | Q159: =P152*((tranyrba*somecol*0.5+earlybagrad*ba*(career-0.5*Game!P154-tranyrba)+(1-earlybagrad)*somecol*(career-0.5*P154-tranyrba))) -> 0 | R159: =Q152*((tranyrba*somecol*0.5+earlybagrad*ba*(career-0.5*Game!Q154-tranyrba)+(1-earlybagrad)*somecol*(career-0.5*Q154-tranyrba))) -> 0 | S159: =R152*((tranyrba*somecol*0.5+earlybagrad*ba*(career-0.5*Game!R154-tranyrba)+(1-earlybagrad)*somecol*(career-0.5*R154-tranyrba))) -> 0 | V159: =S152*((tranyrba*somecol*0.5+earlybagrad*ba*(career-0.5*Game!S154-tranyrba)+(1-earlybagrad)*somecol*(career-0.5*S154-tranyrba))) -> 0 | W159: 0 | X159: =SUM(H159:W159) -> 382317.2746
F160: Exp. grad earnings | H160: - | I160: =H153*((gradyrba*aa*0.5)+(career-0.5*H154-gradyrba)*(ba*(aabagrad*aatran)+aa*(((1-aabagrad)*aatran)+(1-aatran)))) -> 0 | J160: 0 | K160: 0 | L160: 1377679.95 | M160: 0 | N160: 0 | O160: 0 | P160: 0 | Q160: 0 | R160: 0 | S160: 0 | V160: =S153*((gradyrba*aa*0.5)+(career-0.5*S154-gradyrba)*(ba*(aabagrad*aatran)+aa*(((1-aabagrad)*aatran)+(1-aatran)))) -> 0 | X160: =SUM(H160:W160) -> 1377679.95
W161: sum | X161: =SUM(X157:X160) -> 2106568.683
F165: Average
F166: ="Developmental Courses Needed (0-"&maxdev&")" -> Developmental Courses Needed (0-7) | G166: 1 | H166: Cumulative probability of dropping out: | M166: =S191 -> 3
F167: High School Performance (0.00 - 4.00) | G167: 3 | H167: Expected lifetime earnings: | L167: =X215 -> 0
G168: =7*24 -> 168
F169: Fun, hours per week (computed) | H169: =IF(($G$113-H171*7-H172*7-H173*(Corhrs+Corcred*(H174))-H175-H176)<0,"Error",($G$113-H171*7-H172*7-H173*(Corhrs+Corcred*(H174))-H175-H176)) -> 21 | I169: 21 | J169: 23 | K169: 5 | L169: 8 | M169: 9 | N169: 17 | O169: 17 | P169: 18 | Q169: 18 | R169: 18 | S169: 18
F170: Input variables: Average Student
F171: Sleep, eat, commute: hours per day | H171: 12 | I171: 12 | J171: 12 | K171: 11 | L171: 12 | M171: 11 | N171: 11 | O171: 11 | P171: 11 | Q171: 11 | R171: 11 | S171: 11
F172: Family: hours per day | H172: 3 | I172: 3 | J172: 3 | K172: 3 | L172: 3 | M172: 3 | N172: 3 | O172: 3 | P172: 3 | Q172: 3 | R172: 3 | S172: 3
F173: =" Courses ("&Corcred&" credits/course)" -> Courses (3 credits/course) | H173: 6 | I173: 6 | J173: 0 | K173: 6 | L173: 6 | M173: 5 | N173: 3 | O173: 3 | P173: 3 | Q173: 3 | R173: 3 | S173: 3
F174: =" Hours of study/course credit (max. "&maxstudy&")" -> Hours of study/course credit (max. 3) | H174: 1 | I174: 1 | J174: 0 | K174: 0 | L174: 0 | M174: 0 | N174: 0 | O174: 0 | P174: 0 | Q174: 0 | R174: 0 | S174: 0
F175: =" Support activities: hours per week (max. "&maxsup&")" -> Support activities: hours per week (max. 10) | H175: 0 | I175: 0 | J175: 0 | K175: 1 | L175: 1 | M175: 1 | N175: 1 | O175: 1 | P175: 0 | Q175: 0 | R175: 0 | S175: 0
F176: Work: hours per week | H176: 0 | I176: 0 | J176: 40 | K176: 40 | L176: 30 | M176: 40 | N176: 40 | O176: 40 | P176: 40 | Q176: 40 | R176: 40 | S176: 40
F177: Change major (1=yes) | H177: 0 | I177: 0 | J177: 0 | K177: 0 | L177: 0 | M177: 0 | N177: 0 | O177: 0 | P177: 0 | Q177: 0 | R177: 0 | S177: 0
F179: Above 3.00
H180: 1 | I180: =H180+1 -> 2 | J180: 3 | K180: 4 | L180: 5 | M180: 6 | N180: 7 | O180: 8 | P180: 9 | Q180: 10 | R180: 11 | S180: 12
F181: Cum P DO | H181: 0.09358752166 | I181: 0.1542461005 | J181: 0.1715771231 | K181: 0.1889081456 | L181: 0.2114384749 | M181: 0.2218370884 | N181: 0.2322357019 | O181: 0.2391681109 | P181: 0.2409012132 | Q181: 0.2443674177 | R181: 0.2461005199 | S181: 0.2495667244
F182: Cum P T | H182: 0.03292894281 | I182: 0.07452339688 | J182: 0.1039861352 | K182: 0.157712305 | L182: 0.1733102253 | M182: 0.1941074523 | N182: 0.2010398614 | O182: 0.2079722704 | P182: 0.2131715771 | Q182: 0.2131715771 | R182: 0.2149046794 | S182: 0.2183708839
F183: Cum P G | H183: 0 | I183: 0.01039861352 | J183: 0.01213171577 | K183: 0.08145580589 | L183: 0.1767764298 | M183: 0.2928942808 | N183: 0.3604852686 | O183: 0.410745234 | P183: 0.43847487 | Q183: 0.4627383016 | R183: 0.4766031196 | S183: 0.4818024263
F184: Above 3.00
F185: ="Developmental Courses Needed (0-"&maxdev&")" -> Developmental Courses Needed (0-7) | G185: 0 | H185: Cumulative probability of dropping out: | M185: =S210 -> 0
F186: High School Performance (0.00 - 4.00) | G186: 3.75 | H186: Expected lifetime earnings: | L186: =#REF! -> 
G187: =7*24 -> 168
F188: Fun, hours per week (computed) | H188: =IF(($G$113-H190*7-H191*7-H192*(Corhrs+Corcred*(H193))-H194-H195)<0,"Error",($G$113-H190*7-H191*7-H192*(Corhrs+Corcred*(H193))-H194-H195)) -> 2 | I188: 2 | J188: 2 | K188: 2 | L188: 2 | M188: 28 | N188: 28 | O188: 28 | P188: 28 | Q188: 28 | R188: 28 | S188: 28
F189: Input variables: Good Student
F190: Sleep, eat, commute: hours per day | H190: 10 | I190: 10 | J190: 10 | K190: 10 | L190: 10 | M190: 10 | N190: 10 | O190: 10 | P190: 10 | Q190: 10 | R190: 10 | S190: 10
F191: Family: hours per day | H191: 3 | I191: 3 | J191: 3 | K191: 3 | L191: 3 | M191: 3 | N191: 3 | O191: 3 | P191: 3 | Q191: 3 | R191: 3 | S191: 3
F192: =" Courses ("&Corcred&" credits/course)" -> Courses (3 credits/course) | H192: 5 | I192: 5 | J192: 5 | K192: 5 | L192: 5 | M192: 3 | N192: 3 | O192: 3 | P192: 3 | Q192: 3 | R192: 3 | S192: 3
F193: =" Hours of study/course credit (max. "&maxstudy&")" -> Hours of study/course credit (max. 3) | H193: 3 | I193: 3 | J193: 3 | K193: 3 | L193: 3 | M193: 3 | N193: 3 | O193: 3 | P193: 3 | Q193: 3 | R193: 3 | S193: 3
F194: =" Support activities: hours per week (max. "&maxsup&")" -> Support activities: hours per week (max. 10) | H194: 10 | I194: 10 | J194: 10 | K194: 10 | L194: 10 | M194: 10 | N194: 10 | O194: 10 | P194: 10 | Q194: 10 | R194: 10 | S194: 10
F195: Work: hours per week | H195: 0 | I195: 0 | J195: 0 | K195: 0 | L195: 0 | M195: 0 | N195: 0 | O195: 0 | P195: 0 | Q195: 0 | R195: 0 | S195: 0
F196: Change major (1=yes) | H196: 0 | I196: 0 | J196: 0 | K196: 0 | L196: 0 | M196: 0 | N196: 0 | O196: 0 | P196: 0 | Q196: 0 | R196: 0 | S196: 0
F200: Not Good
F201: ="Developmental Courses Needed (0-"&maxdev&")" -> Developmental Courses Needed (0-7) | G201: 7 | H201: Cumulative probability of dropping out: | M201: =#REF! -> 
F202: High School Performance (0.00 - 4.00) | G202: 0 | H202: Expected lifetime earnings: | L202: =#REF! -> 
G203: =7*24 -> 168
F204: Fun, hours per week (computed) | H204: =IF(($G$113-H206*7-H207*7-H208*(Corhrs+Corcred*(H209))-H210-H211)<0,"Error",($G$113-H206*7-H207*7-H208*(Corhrs+Corcred*(H209))-H210-H211)) -> 33 | I204: 38 | J204: 37 | K204: 39 | L204: 43 | M204: 51 | N204: 43 | O204: 43 | P204: 51 | Q204: 43 | R204: 43 | S204: 43
F205: Input variables: Weak Student
F206: Sleep, eat, commute: hours per day | H206: 8 | I206: 8 | J206: 8 | K206: 8 | L206: 8 | M206: 8 | N206: 8 | O206: 8 | P206: 8 | Q206: 8 | R206: 8 | S206: 8
F207: Family: hours per day | H207: 5 | I207: 5 | J207: 5 | K207: 3 | L207: 3 | M207: 3 | N207: 3 | O207: 3 | P207: 3 | Q207: 3 | R207: 3 | S207: 3
F208: =" Courses ("&Corcred&" credits/course)" -> Courses (3 credits/course) | H208: 3 | I208: 2 | J208: 0 | K208: 3 | L208: 2 | M208: 0 | N208: 2 | O208: 2 | P208: 0 | Q208: 2 | R208: 2 | S208: 2
F209: =" Hours of study/course credit (max. "&maxstudy&")" -> Hours of study/course credit (max. 3) | H209: 0 | I209: 0 | J209: 0 | K209: 0 | L209: 0 | M209: 0 | N209: 0 | O209: 0 | P209: 0 | Q209: 0 | R209: 0 | S209: 0
F210: =" Support activities: hours per week (max. "&maxsup&")" -> Support activities: hours per week (max. 10) | H210: 2 | I210: 1 | J210: 0 | K210: 0 | L210: 0 | M210: 0 | N210: 0 | O210: 0 | P210: 0 | Q210: 0 | R210: 0 | S210: 0
F211: Work: hours per week | H211: 30 | I211: 30 | J211: 40 | K211: 40 | L211: 40 | M211: 40 | N211: 40 | O211: 40 | P211: 40 | Q211: 40 | R211: 40 | S211: 40
F212: Change major (1=yes) | H212: 0 | I212: 0 | J212: 0 | K212: 0 | L212: 1 | M212: 0 | N212: 0 | O212: 0 | P212: 0 | Q212: 0 | R212: 0 | S212: 0
F214: <2.5 Cum GPA final
F215: Cum P DO | H215: 0.1993594876 | I215: 0.3322658127 | J215: 0.4035228183 | K215: 0.4371497198 | L215: 0.4723779023 | M215: 0.5004003203 | N215: 0.518815052 | O215: 0.5340272218 | P215: 0.550040032 | Q215: 0.5596477182 | R215: 0.5716573259 | S215: 0.579663731
F216: Cum P T | H216: 0.05924739792 | I216: 0.1016813451 | J216: 0.1329063251 | K216: 0.2001601281 | L216: 0.2417934347 | M216: 0.256204964 | N216: 0.2786228983 | O216: 0.2914331465 | P216: 0.2978382706 | Q216: 0.3058446757 | R216: 0.3130504404 | S216: 0.3154523619
F217: Cum P G | H217: 0 | I217: 0 | J217: 0 | K217: 0.004003202562 | L217: 0.008807045637 | M217: 0.0256204964 | N217: 0.03522818255 | O217: 0.05124099279 | P217: 0.05524419536 | Q217: 0.06004803843 | R217: 0.06485188151 | S217: 0.06965572458
F300: A Model of the Path to Graduation--Life Happens, Some Students Have Better Protection Against It
G301: Initial | H301: ="Term "& TEXT(H355,Paramters!$C$1) -> Term 1 | I301: ="Term "& TEXT(I355,Paramters!$C$1) -> Term 2 | J301: ="Term "& TEXT(J355,Paramters!$C$1) -> Term 3 | K301: ="Term "& TEXT(K355,Paramters!$C$1) -> Term 4 | L301: ="Term "& TEXT(L355,Paramters!$C$1) -> Term 5 | M301: ="Term "& TEXT(M355,Paramters!$C$1) -> Term 6 | N301: ="Term "& TEXT(N355,Paramters!$C$1) -> Term 7 | O301: ="Term "& TEXT(O355,Paramters!$C$1) -> Term 8 | P301: ="Term "& TEXT(P355,Paramters!$C$1) -> Term 9 | Q301: ="Term "& TEXT(Q355,Paramters!$C$1) -> Term 10 | R301: ="Term "& TEXT(R355,Paramters!$C$1) -> Term 11 | S301: ="Term "& TEXT(S355,Paramters!$C$1) -> Term 12
F302: Protection Level | H302: =((maxdev-G323)*devfac+G324*hsgrdfac)+2 -> 68 | I302: =0*H326+H302+IF(H304>=gradcred,0,-IF(H328<minsleep,minsleep-H328,0)*sleepfac+MIN(H332,maxsup)*Supfac)+MIN(H331,maxstudy)*(H304-G304)*Grdfac+(H304-G304)*credfac -> 553 | J302: 1131 | K302: 1616 | L302: 1988 | M302: 1988 | N302: 1988 | O302: 1988 | P302: 1988 | Q302: 1988 | R302: 1988 | S302: 1988
F303: Outcome, after end of semester | H303: =VLOOKUP(H368,state,2) -> Continue | I303: Continue | J303: Continue | K303: Graduation | L303: Graduation | M303: Graduation | N303: Graduation | O303: Graduation | P303: Graduation | Q303: Graduation | R303: Graduation | S303: Graduation | T303: =MATCH("Continue",Game!H303:S303,1) -> 3
F304: Credits toward graduation, term end | G304: =-G323*3 -> 0 | H304: =ROUNDDOWN(IF(G304+H353-IF(AND(H334=1,G304>0),majloss*G304,0)>=gradcred,gradcred,G304+H353-IF(AND(H334=1,G304>0),majloss*G304,0)),0) -> 15 | I304: 33 | J304: 48 | K304: 60 | L304: 60 | M304: 60 | N304: 60 | O304: 60 | P304: 60 | Q304: 60 | R304: 60 | S304: 60
G305: 90 | H305: =100*(H$338) -> 41.92797437 | I305: =100*(I$338) -> 71.03460175 | J305: 84.96788175 | K305: 92.90269492 | L305: 97.84410101 | M305: 97.84410101 | N305: 97.84410101 | O305: 97.84410101 | P305: 97.84410101 | Q305: 97.84410101 | R305: 97.84410101 | S305: 97.84410101
G306: =G305-10 -> 80 | H306: 41.92797437 | I306: 71.03460175 | J306: 84.96788175 | K306: 92.90269492 | L306: 97.84410101 | M306: 97.84410101 | N306: 97.84410101 | O306: 97.84410101 | P306: 97.84410101 | Q306: 97.84410101 | R306: 97.84410101 | S306: 97.84410101
F307: Wall of Protection | G307: 70 | H307: 41.92797437 | I307: 71.03460175 | J307: 84.96788175 | K307: 92.90269492 | L307: 97.84410101 | M307: 97.84410101 | N307: 97.84410101 | O307: 97.84410101 | P307: 97.84410101 | Q307: 97.84410101 | R307: 97.84410101 | S307: 97.84410101
G308: 60 | H308: 41.92797437 | I308: 71.03460175 | J308: 84.96788175 | K308: 92.90269492 | L308: 97.84410101 | M308: 97.84410101 | N308: 97.84410101 | O308: 97.84410101 | P308: 97.84410101 | Q308: 97.84410101 | R308: 97.84410101 | S308: 97.84410101
G309: 50 | H309: 41.92797437 | I309: 71.03460175 | J309: 84.96788175 | K309: 92.90269492 | L309: 97.84410101 | M309: 97.84410101 | N309: 97.84410101 | O309: 97.84410101 | P309: 97.84410101 | Q309: 97.84410101 | R309: 97.84410101 | S309: 97.84410101
G310: 40 | H310: 41.92797437 | I310: 71.03460175 | J310: 84.96788175 | K310: 92.90269492 | L310: 97.84410101 | M310: 97.84410101 | N310: 97.84410101 | O310: 97.84410101 | P310: 97.84410101 | Q310: 97.84410101 | R310: 97.84410101 | S310: 97.84410101
G311: 30 | H311: 41.92797437 | I311: 71.03460175 | J311: 84.96788175 | K311: 92.90269492 | L311: 97.84410101 | M311: 97.84410101 | N311: 97.84410101 | O311: 97.84410101 | P311: 97.84410101 | Q311: 97.84410101 | R311: 97.84410101 | S311: 97.84410101
G312: 20 | H312: 41.92797437 | I312: 71.03460175 | J312: 84.96788175 | K312: 92.90269492 | L312: 97.84410101 | M312: 97.84410101 | N312: 97.84410101 | O312: 97.84410101 | P312: 97.84410101 | Q312: 97.84410101 | R312: 97.84410101 | S312: 97.84410101
G313: 10 | H313: 41.92797437 | I313: 71.03460175 | J313: 84.96788175 | K313: 92.90269492 | L313: 97.84410101 | M313: 97.84410101 | N313: 97.84410101 | O313: 97.84410101 | P313: 97.84410101 | Q313: 97.84410101 | R313: 97.84410101 | S313: 97.84410101
G314: 0 | H314: 41.92797437 | I314: 71.03460175 | J314: 84.96788175 | K314: 92.90269492 | L314: 97.84410101 | M314: 97.84410101 | N314: 97.84410101 | O314: 97.84410101 | P314: 97.84410101 | Q314: 97.84410101 | R314: 97.84410101 | S314: 97.84410101
F323: ="Developmental Courses Needed (0-"&maxdev&")" -> Developmental Courses Needed (0-7) | G323: =Game!G111 -> 0 | H323: Student: | I323: =VLOOKUP((RAND()+1/142)*142,Names,2)&", "&VLOOKUP((RAND()+1/142)*142,Names,3) -> 
F324: High School Performance (0.00 - 4.00) | G324: =Game!G112 -> 4 | H324: Lifetime salary | J324: =U379 -> 2525873.9
F325: Time Distribution--Hours per week | G325: =7*24 -> 168
F326: Fun, hours per week (computed) | H326: =Game!H114 -> 0 | I326: =Game!I114 -> 0 | J326: =Game!J114 -> 0 | K326: =Game!K114 -> 0 | L326: =Game!L114 -> 0 | M326: =Game!M114 -> 0 | N326: =Game!N114 -> 0 | O326: =Game!O114 -> 0 | P326: =Game!P114 -> 0 | Q326: =Game!Q114 -> 0 | R326: =Game!R114 -> 0 | S326: =Game!S114 -> 0
F327: Input variables
F328: Sleep, eat, commute: hours per day | H328: =Game!H116 -> 11.42857143 | I328: =Game!I116 -> 11.42857143 | J328: =Game!J116 -> 11.42857143 | K328: =Game!K116 -> 11.42857143 | L328: =Game!L116 -> 11.42857143 | M328: =Game!M116 -> 11.42857143 | N328: =Game!N116 -> 11.42857143 | O328: =Game!O116 -> 11.42857143 | P328: =Game!P116 -> 11.42857143 | Q328: =Game!Q116 -> 11.42857143 | R328: =Game!R116 -> 11.42857143 | S328: =Game!S116 -> 11.42857143
F329: Family: hours per day | H329: =Game!H117 -> 0 | I329: =Game!I117 -> 0 | J329: =Game!J117 -> 0 | K329: =Game!K117 -> 0 | L329: =Game!L117 -> 0 | M329: =Game!M117 -> 0 | N329: =Game!N117 -> 0 | O329: =Game!O117 -> 0 | P329: =Game!P117 -> 0 | Q329: =Game!Q117 -> 0 | R329: =Game!R117 -> 0 | S329: =Game!S117 -> 0
F330: =" Courses ("&Corcred&" credits/course)" -> Courses (3 credits/course) | H330: =Game!H118 -> 6 | I330: =Game!I118 -> 6 | J330: =Game!J118 -> 6 | K330: =Game!K118 -> 6 | L330: =Game!L118 -> 6 | M330: =Game!M118 -> 6 | N330: =Game!N118 -> 6 | O330: =Game!O118 -> 6 | P330: =Game!P118 -> 6 | Q330: =Game!Q118 -> 6 | R330: =Game!R118 -> 6 | S330: =Game!S118 -> 6
F331: =" Hours of study/course credit (max. "&maxstudy&")" -> Hours of study/course credit (max. 3) | H331: =Game!H119 -> 3 | I331: =Game!I119 -> 3 | J331: =Game!J119 -> 3 | K331: =Game!K119 -> 3 | L331: =Game!L119 -> 3 | M331: =Game!M119 -> 3 | N331: =Game!N119 -> 3 | O331: =Game!O119 -> 3 | P331: =Game!P119 -> 3 | Q331: =Game!Q119 -> 3 | R331: =Game!R119 -> 3 | S331: =Game!S119 -> 3
F332: =" Support activities: hours per week (max. "&maxsup&")" -> Support activities: hours per week (max. 10) | H332: =Game!H120 -> 10 | I332: =Game!I120 -> 10 | J332: =Game!J120 -> 10 | K332: =Game!K120 -> 10 | L332: =Game!L120 -> 10 | M332: =Game!M120 -> 10 | N332: =Game!N120 -> 10 | O332: =Game!O120 -> 10 | P332: =Game!P120 -> 10 | Q332: =Game!Q120 -> 10 | R332: =Game!R120 -> 10 | S332: =Game!S120 -> 10
F333: Work: hours per week | H333: =Game!H121 -> 0 | I333: =Game!I121 -> 0 | J333: =Game!J121 -> 0 | K333: =Game!K121 -> 0 | L333: =Game!L121 -> 0 | M333: =Game!M121 -> 0 | N333: =Game!N121 -> 0 | O333: =Game!O121 -> 0 | P333: =Game!P121 -> 0 | Q333: =Game!Q121 -> 0 | R333: =Game!R121 -> 0 | S333: =Game!S121 -> 0
F334: Change major (1=yes) | H334: =Game!H122 -> 0 | I334: =Game!I122 -> 0 | J334: =Game!J122 -> 0 | K334: =Game!K122 -> 0 | L334: =Game!L122 -> 1 | M334: =Game!M122 -> 0 | N334: =Game!N122 -> 0 | O334: =Game!O122 -> 0 | P334: =Game!P122 -> 0 | Q334: =Game!Q122 -> 0 | R334: =Game!R122 -> 0 | S334: =Game!S122 -> 0
F338: Protection | H338: =(1-((minprot+(maxprot-H302))/maxprot))^profac -> 0.4192797437 | I338: 0.7103460175 | J338: 0.8496788175 | K338: 0.9290269492 | L338: 0.9784410101 | M338: 0.9784410101 | N338: 0.9784410101 | O338: 0.9784410101 | P338: 0.9784410101 | Q338: 0.9784410101 | R338: 0.9784410101 | S338: 0.9784410101
F339: Probability of dropping out | H339: =(1-H338)*badfac -> 0.1161440513 | I339: 0.0579307965 | J339: 0.03006423651 | K339: 0.01419461015 | L339: 0.004311797978 | M339: 0.004311797978 | N339: 0.004311797978 | O339: 0.004311797978 | P339: 0.004311797978 | Q339: 0.004311797978 | R339: 0.004311797978 | S339: 0.004311797978 | T339: From the protection table
F340: Cumulative probability of dropping out | H340: =H339 -> 0.1161440513 | I340: =H340+(I339*(1-(H$342+H$340+H$365))) -> 0.1650292985 | J340: 0.1876609914 | K340: 0.1974908628 | L340: 0.2001955539 | M340: 0.2025910669 | N340: 0.2025910669 | O340: 0.2025910669 | P340: 0.2025910669 | Q340: 0.2025910669 | R340: 0.2025910669 | S340: 0.2025910669 | T340: The probability of a life event times the probability of impact, considering protection.
F341: Probability of transfer | H341: 0.04 | I341: 0.05 | J341: 0.05 | K341: 0.08 | L341: 0.11 | M341: 0.07 | N341: 0.07 | O341: 0.06 | P341: 0.06 | Q341: 0.06 | R341: 0.06 | S341: 0.06 | T341: The previous semesters probability of leaving plus 1 minus that probability (the probability of not having left) times this semesters probability of leaving, up to earning graduation level credits.
F342: Cumulative probability of transfer | H342: =H341 -> 0.04 | I342: =H342+(I341*(1-(H$342+H$363+H$365))) -> 0.08219279744 | J342: 0.1198316926 | K342: 0.1752322779 | L342: 0.2442327324 | M342: 0.2831227524 | N342: 0.2831227524 | O342: 0.2831227524 | P342: 0.2831227524 | Q342: 0.2831227524 | R342: 0.2831227524 | S342: 0.2831227524
F343: Cumulative probability of leaving | H343: =H340+H342+H365 -> 0.1561440513 | I343: 0.2472220959 | J343: 0.3074926841 | K343: 0.3727231407 | L343: 0.4444282864 | M343: 1 | N343: 1 | O343: 1 | P343: 1 | Q343: 1 | R343: 1 | S343: 1
F344: Course pass probability | H344: =(minpass+(MIN(H331,maxstudy)/maxstudy)*(maxpass-minpass)) -> 0.9 | I344: 0.9 | J344: 0.9 | K344: 0.9 | L344: 0.9 | M344: 0.9 | N344: 0.9 | O344: 0.9 | P344: 0.9 | Q344: 0.9 | R344: 0.9 | S344: 0.9
F345: Random course outcome | G345: 1 | H345: =RAND() -> 0.9847141041 | I345: 0.6864624519 | J345: 0.5347306553 | K345: 0.2497459432 | L345: 0.9865580447 | M345: 0.600303907 | N345: 0.7429362139 | O345: 0.3084244439 | P345: 0.9721828189 | Q345: 0.3735616176 | R345: 0.2306289863 | S345: 0.9872324531
F346: Random course outcome | G346: =G345+1 -> 2 | H346: 0.512752821 | I346: 0.8168879259 | J346: 0.7189195989 | K346: 0.08212346407 | L346: 0.0300104442 | M346: 0.4875686237 | N346: 0.6616848292 | O346: 0.8318271826 | P346: 0.2650604206 | Q346: 0.2458925878 | R346: 0.3040642508 | S346: 0.2593985225
F347: Random course outcome | G347: 3 | H347: 0.4788722824 | I347: 0.3459810124 | J347: 0.186494752 | K347: 0.38315419 | L347: 0.5488731982 | M347: 0.9129286823 | N347: 0.2687277789 | O347: 0.8828056189 | P347: 0.9884143719 | Q347: 0.189845591 | R347: 0.8082520678 | S347: 0.8037382798
F348: Random course outcome | G348: 4 | H348: 0.8168273042 | I348: 0.5527345842 | J348: 0.5492035512 | K348: 0.3435952449 | L348: 0.8502291868 | M348: 0.3078249903 | N348: 0.8572927507 | O348: 0.7586545202 | P348: 0.5410000814 | Q348: 0.5094151259 | R348: 0.1278678504 | S348: 0.203734412
F349: Random course outcome | G349: 5 | H349: 0.5896084627 | I349: 0.2863060215 | J349: 0.3741208967 | K349: 0.3773417302 | L349: 0.772740808 | M349: 0.1952267982 | N349: 0.4422150513 | O349: 0.01133491275 | P349: 0.2546237521 | Q349: 0.01018623573 | R349: 0.4113336693 | S349: 0.9596485804
F350: Random course outcome | G350: 6 | H350: 0.4122262641 | I350: 0.1119531624 | J350: 0.9878791536 | K350: 0.7222641377 | L350: 0.6695820463 | M350: 0.8986533549 | N350: 0.02055559882 | O350: 0.3983599913 | P350: 0.9545595634 | Q350: 0.936610215 | R350: 0.4472788674 | S350: 0.1068067346
F351: Random course outcome | G351: 7 | H351: 0.9336101645 | I351: 0.09880866312 | J351: 0.4249562541 | K351: 0.9569968394 | L351: 0.03999867678 | M351: 0.3905320443 | N351: 0.5041426431 | O351: 0.8360403377 | P351: 0.008308789482 | Q351: 0.5874418711 | R351: 0.3337513861 | S351: 0.7992525209
F352: Random course outcome | G352: 8 | H352: 0.006637135312 | I352: 0.9072469403 | J352: 0.03749284879 | K352: 0.132459862 | L352: 0.2181182736 | M352: 0.7647362182 | N352: 0.7279757648 | O352: 0.7543621011 | P352: 0.08668862792 | Q352: 0.2757538256 | R352: 0.3142416634 | S352: 0.5063641978
F353: Credits earned | G353: =-G323*3 -> 0 | H353: =Corcred*(IF(H345>H$344,0,1)*(H330>=1)+IF(H346>H$344,0,1)*(H330>=2)+IF(H347>H$344,0,1)*(H330>=3)+IF(H348>H$344,0,1)*(H330>=4)+IF(H349>H$344,0,1)*(H330>=5)+IF(H350>H$344,0,1)*(H330>=6)+IF(H351>H$344,0,1)*(H330>=7)+IF(H352>H$344,0,1)*(H330>=8)) -> 15 | I353: 18 | J353: 15 | K353: 18 | L353: 15 | M353: 15 | N353: 18 | O353: 18 | P353: 9 | Q353: 15 | R353: 18 | S353: 12
F354: Cumulative credits earned, raw | G354: =G353 -> 0 | H354: =ROUNDDOWN(G354+H353,0) -> 15 | I354: 33 | J354: 48 | K354: 66 | L354: 81 | M354: 96 | N354: 114 | O354: 132 | P354: 141 | Q354: 156 | R354: 174 | S354: 186
F355: Semester | H355: 1 | I355: =H355+1 -> 2 | J355: 3 | K355: 4 | L355: 5 | M355: 6 | N355: 7 | O355: 8 | P355: 9 | Q355: 10 | R355: 11 | S355: 12
F356: Probability of transfer | G356: Actual | H356: 0.04324565314 | I356: 0.05173362686 | J356: 0.04563758389 | K356: 0.1135091926 | L356: 0.07995846314 | M356: 0.0652173913 | N356: 0.07480314961 | O356: 0.0652173913 | P356: 0.0553633218 | Q356: 0.06696428571 | R356: 0.07514450867 | S356: 0.06201550388
F357: Cum Probability of transfer | G357: Actual | H357: =H356 -> 0.04324565314 | I357: =H357+(I356*(1-(H$361+H$359+H$357))) -> 0.08515381186 | J357: 0.1154703522 | K357: 0.1787784218 | L357: 0.2131074454 | M357: 0.2331698618 | N357: 0.2501114579 | O357: 0.2608114133 | P357: 0.2679447169 | Q357: 0.274632189 | R357: 0.2804279982 | S357: 0.28399465
F358: Probability of dropping out | G358: Actual | H358: 0.1435577352 | I358: 0.1249312053 | J358: 0.07516778523 | K358: 0.04636290967 | L358: 0.06957424714 | M358: 0.0768115942 | N358: 0.06299212598 | O358: 0.07608695652 | P358: 0.0830449827 | Q358: 0.0625 | R358: 0.1040462428 | S358: 0.09302325581
F359: Cum Probability of dropping out | G359: Actual | H359: =H358 -> 0.1435577352 | I359: =H359+(I358*(1-(H$361+H$359+H$357))) -> 0.2447614802 | J359: 0.2946946054 | K359: 0.320552831 | L359: 0.3504235399 | M359: 0.3740526081 | N359: 0.3883192153 | O359: 0.4008024967 | P359: 0.4115024521 | Q359: 0.4177440927 | R359: 0.4257690593 | S359: 0.431119037
F360: Probability of graduating | G360: Actual | H360: 0.00312082033 | I360: 0.003302146395 | J360: 0.03959731544 | K360: 0.07034372502 | L360: 0.1339563863 | M360: 0.1217391304 | N360: 0.1377952756 | O360: 0.07336956522 | P360: 0.08650519031 | Q360: 0.09821428571 | R360: 0.07514450867 | S360: 0.06976744186
F361: Cum Probability of graduating | G361: Actual | H361: =H360 -> 0.00312082033 | I361: =H361+(I360*(1-(H$361+H$359+H$357))) -> 0.005795809184 | J361: 0.03209986625 | K361: 0.07133303611 | L361: 0.1288452965 | M361: 0.1662951404 | N361: 0.1975033437 | O361: 0.2095407936 | P361: 0.2206865805 | Q361: 0.2304948729 | R361: 0.2362906821 | S361: 0.2403031654
F362: Probability of dropping out | G362: Calculated | H362: =H339 -> 0.1161440513 | I362: 0.0579307965 | J362: 0.03006423651 | K362: 0.01419461015 | L362: 0.004311797978 | M362: 0.004311797978 | N362: 0.004311797978 | O362: 0.004311797978 | P362: 0.004311797978 | Q362: 0.004311797978 | R362: 0.004311797978 | S362: 0.004311797978
F363: Cum Probability of dropping out | G363: Calculated | H363: =H362 -> 0.1161440513 | I363: =H363+(I362*(1-(H$342+H$363+H$365))) -> 0.1650292985 | J363: 0.1876609914 | K363: 0.1974908628 | L363: 0.2001955539 | M363: 0.2025910669 | N363: 0.2025910669 | O363: 0.2025910669 | P363: 0.2025910669 | Q363: 0.2025910669 | R363: 0.2025910669 | S363: 0.2025910669
F364: Probability of graduating | G364: Calculated | H364: 0 | I364: =IF(G304>=gradcred,IF(SUM($H364:H364)>0,0,1-I339-I341),0) -> 0 | J364: =IF(H304>=gradcred,IF(SUM($H364:I364)>0,0,1-J339-J341),0) -> 0 | K364: =IF(I304>=gradcred,IF(SUM($H364:J364)>0,0,1-K339-K341),0) -> 0 | L364: =IF(J304>=gradcred,IF(SUM($H364:K364)>0,0,1-L339-L341),0) -> 0 | M364: =IF(K304>=gradcred,IF(SUM($H364:L364)>0,0,1-M339-M341),0) -> 0.925688202 | N364: =IF(L304>=gradcred,IF(SUM($H364:M364)>0,0,1-N339-N341),0) -> 0 | O364: =IF(M304>=gradcred,IF(SUM($H364:N364)>0,0,1-O339-O341),0) -> 0 | P364: =IF(N304>=gradcred,IF(SUM($H364:O364)>0,0,1-P339-P341),0) -> 0 | Q364: =IF(O304>=gradcred,IF(SUM($H364:P364)>0,0,1-Q339-Q341),0) -> 0 | R364: =IF(P304>=gradcred,IF(SUM($H364:Q364)>0,0,1-R339-R341),0) -> 0 | S364: =IF(Q304>=gradcred,IF(SUM($H364:R364)>0,0,1-S339-S341),0) -> 0
F365: Cumulative probability of graduating | G365: Calculated | H365: =H364 -> 0 | I365: =H365+(I364*(1-(H$342+H$363+H$365))) -> 0 | J365: 0 | K365: 0 | L365: 0 | M365: 0.5142861807 | N365: 0.5142861807 | O365: 0.5142861807 | P365: 0.5142861807 | Q365: 0.5142861807 | R365: 0.5142861807 | S365: 0.5142861807
H366: =H342+H363+H365 -> 0.1561440513 | I366: 0.2472220959 | J366: 0.3074926841 | K366: 0.3727231407 | L366: 0.4444282864 | M366: 1 | N366: 1 | O366: 1 | P366: 1 | Q366: 1 | R366: 1 | S366: 1
F367: Life Outcome | H367: =RAND() -> 0.592070529 | I367: 0.535521535 | J367: 0.76094009 | K367: 0.5458750058 | L367: 0.272571271 | M367: 0.9096008512 | N367: 0.7753484844 | O367: 0.3936829663 | P367: 0.1457629716 | Q367: 0.1842761864 | R367: 0.5109869656 | S367: 0.1014176968
F368: 4=grad, 3= DO, 2=Trans, 1=Cont. | G368: 1 | H368: =IF(G304>=gradcred,4,IF(H367<H339,3,IF(H367<(H339+H341),2,1))) -> 1 | I368: =IF(H368>1,H368,IF(I304>=gradcred,4,IF(I367<I339,3,IF(I367<(I339+I341),2,1)))) -> 1 | J368: 1 | K368: 4 | L368: 4 | M368: 4 | N368: 4 | O368: 4 | P368: 4 | Q368: 4 | R368: 4 | S368: 4
F369: Graph variables
F370: =F340 -> Cumulative probability of dropping out | H370: =IF(G368=1,H340,IF(G368=3,1,0)) -> 0.1161440513 | I370: 0.1650292985 | J370: 0.1876609914 | K370: 0.1974908628 | L370: 0 | M370: 0 | N370: 0 | O370: 0 | P370: 0 | Q370: 0 | R370: 0 | S370: 0
F371: =F342 -> Cumulative probability of transfer | H371: =IF(G368=1,H342,IF(G368=2,1,0)) -> 0.04 | I371: 0.08219279744 | J371: 0.1198316926 | K371: 0.1752322779 | L371: 0 | M371: 0 | N371: 0 | O371: 0 | P371: 0 | Q371: 0 | R371: 0 | S371: 0
F372: =F365 -> Cumulative probability of graduating | H372: =IF(G368=1,H365,IF(G368=4,1,0)) -> 0 | I372: 0 | J372: 0 | K372: 0 | L372: 1 | M372: 1 | N372: 1 | O372: 1 | P372: 1 | Q372: 1 | R372: 1 | S372: 1
F373: =F343 -> Cumulative probability of leaving | H373: =IF(G368=1,H343,1) -> 0.1561440513 | I373: 0.2472220959 | J373: 0.3074926841 | K373: 0.3727231407 | L373: 1 | M373: 1 | N373: 1 | O373: 1 | P373: 1 | Q373: 1 | R373: 1 | S373: 1
F374: Salary calculations
F375: Salary in school | H375: =IF(H368=1,H333*0.5*somecol/40,0) -> 0 | I375: 0 | J375: 0 | K375: 0 | L375: 0 | M375: 0 | N375: 0 | O375: 0 | P375: 0 | Q375: 0 | R375: 0 | S375: 0 | T375: =IF(S368=1,(career-6)*somecol,0) -> 0 | U375: =SUM(H375:T375) -> 0
F376: Salary if drop out | H376: =IF(AND(G368=1,H368=3),(career-H355/0.5)*somecol,0) -> 0 | I376: 0 | J376: 0 | K376: 0 | L376: 0 | M376: 0 | N376: 0 | O376: 0 | P376: 0 | Q376: 0 | R376: 0 | S376: 0 | T376: =IF(AND(S368=1,T371=3),(career-T359/0.5)*somecol,0) -> 0 | U376: =SUM(H376:T376) -> 0
F377: Salary if transfer | H377: =IF(AND(G368=1,H368=2),((1-earlybagrad)*(career-H355/2)*aa)+(earlybagrad*(ba*(career-tranyrba-H355/2)+(aa*tranyrba))),0) -> 0 | I377: 0 | J377: 0 | K377: 0 | L377: 0 | M377: 0 | N377: 0 | O377: 0 | P377: 0 | Q377: 0 | R377: 0 | S377: 0 | T377: =IF(AND(S368=1,T371=2),((1-earlybagrad)*(career-T359/2)*aa)+(earlybagrad*(ba*(career-tranyrba-T359/2)+(aa*tranyrba))),0) -> 0 | U377: =SUM(H377:T377) -> 0
... 2 more rows

Sheet Paramters
B1: Parameters | C1: 0 | G1: Test Status | H1: Need | I1: % | J1: Num.
A2: badfac | B2: Probability of a bad thing in life | C2: 0.2 | D2: The probability of something bad enough happening each semester that without sufficient protection the student will leave. | G2: Passed All | H2: 0 | I2: 0.25 | J2: 693 | K2: =I2*H2 -> 0
A3: Supfac | B3: Support Factor (protection points per hour) | C3: 2 | D3: This is multiplied times the hours spent in support activities to increase protection points. | G3: Passed Two | H3: 1 | I3: 0.29 | J3: 811 | K3: =I3*H3 -> 0.29
A4: credfac | B4: Credit factor | C4: 1 | D4: This is multiplied times the number of credits earned to increase protection points. | G4: Passed One | H4: 2 | I4: 0.28 | J4: 807 | K4: =I4*H4 -> 0.56
A5: Grdfac | B5: Grades additional multiplier | C5: 10 | D5: This is the % added for each hour of study for each course in the increase to protection points. | G5: Passed None | H5: 3 | I5: 0.18 | J5: 517 | K5: 0.54
A6: minpass | B6: Minimum probability of passing course with 0 hours of study | C6: 0.63 | D6: If good grades are turned off, this is the proportion of credits earned. | J6: =SUM(J2:J5) -> 2828 | K6: =SUM(K2:K5) -> 1.39
A7: maxpass | B7: ="Maximum probability of passing course with "&maxstudy&" hours of study" -> Maximum probability of passing course with 3 hours of study | C7: 0.9 | D7: If good grades are turned on, this is the proportion of credits earned.
A8: gradcred | B8: Credits for graduation | C8: 60
A9: majloss | B9: % loss of earned credits for major change | C9: 0.2 | D9: This is the proportion of accumulated credits lost whenever a major is changed.
A10: Corcred | B10: Credits per course | C10: 3
A11: Corhrs | B11: Course hours per week | C11: 4 | D11: The cost of each course in hours per week.
A12: minsleep | B12: Minimum hours of sleep, eat & commute before protection penalty | C12: 6
A13: maxstudy | B13: Maximum number of hours that study is useful per course credit | C13: 3
A14: maxdev | B14: Developmental Courses Needed Max | C14: 7
B15: High School Performance Min | C15: 0
A16: minprot | B16: Minimum Protection Points | C16: =((maxdev-C14)*devfac+C15*hsgrdfac)+1 -> 1
A17: maxprot | B17: Maximum Protection points | C17: =maxdev*devfac+4*hsgrdfac+2+12*(maxsup*Supfac)+maxstudy*gradcred*Grdfac+gradcred*credfac -> 2168 | D17: =hsgrdfac -> 6
B18: Sleep min. | C18: 0
A19: maxsup | B19: Support activities, max. | C19: 10
B20: Good grades, max. | C20: 1
B21: Courses, max. | C21: 8
A22: sleepfac | B22: The impact on points for each hour of sleep below minimum. | C22: 1
A23: devfac | B23: The weight per dev course needed in negative protection points | C23: 6
A24: hsgrdfac | B24: The weight per point in high school grade point to give to protection | C24: 6
A25: profac | B25: protection curve exponential factor | C25: 0.25
A26: 1 | B26: Continue
A27: 2 | B27: Early Transfer
A28: 3 | B28: Drop Out
A29: 4 | B29: Graduation
A30: somecol | B30: Annual earnings, some college | C30: 46168 | D30: =somecol*career -> 1985224 | E30: *
A31: aa | B31: Annual earnings, associate's | C31: 48534 | D31: =aa*career -> 2086962 | E31: *
A32: ba | B32: Annual earnings, BA | C32: 71044 | D32: =ba*career -> 3054892 | E32: *
A33: aatran | B33: Prob of AA grad transferring | C33: 0.55
A34: aabagrad | B34: Prob of AA grad transfer grad BA | C34: 0.54
A35: earlybagrad | B35: Prob of early transfer grad BA | C35: =C34*(1-0.12) -> 0.4752
A36: gradyrba | B36: Number of years to BA degree post grd | C36: 3
A37: tranyrba | B37: Number of years to BA degree early trn | C37: 4
A38: career | B38: Number of earning years at entry | C38: 43
D39: Fun is the number of hours remaining in the week after all else is deducted. If it is negative, an error occurs.
D40: Each developmental course adds three credits toward graduation (by starting the accumulation in the negative.)
D41: The probability of leaving does not increase after the semester when the student might have graduated.
A42: Party | B42: Hours spent in one night's partying | C42: 6
B44: *Source: Bureau of the Census; Bureau of Labor Statistics
B45: http://www.census.gov/hhes/cpstables/032009/perinc/new03-010.htm
